[Event "44th Chess Olympiad Open 2022"]
[Site "Chennai"]
[Date "2022.07.29"]
[Round "1.77"]
[White "Boudriga, Mohamed Ali"]
[Black "Young, Christopher"]
[Result "1-0"]
[WhiteElo "2308"]
[BlackElo "1990"]
[Annotator "RC"]
[PlyCount "59"]
[EventDate "2022.??.??"]
[TimeControl "60"]

1. Nf3 {[%emt 0:02:03]} Nf6 {[%emt 0:00:20]} 2. g3 {[%emt 0:09:44]} b6 {
[%emt 0:02:33]} 3. Bg2 {[%emt 0:00:02]} Bb7 {[%emt 0:00:06]} 4. O-O {[%emt 0:
00:00]} e6 {[%emt 0:02:10]} 5. b3 {[%emt 0:02:37]} Be7 {[%emt 0:02:37]} 6. Bb2
{[%emt 0:00:04]} O-O {[%emt 0:00:07]} 7. c4 {[%emt 0:02:45]} c5 {[%emt 0:03:39]
} 8. Nc3 {[%emt 0:02:48]} d6 {[%emt 0:14:10]} 9. d4 {[%emt 0:00:55]} cxd4 {
[%emt 0:01:11]} 10. Qxd4 {[%emt 0:00:16]} Nc6 {[%emt 0:04:11]} 11. Qd2 {
[%emt 0:00:08]} Rc8 {[%emt 0:01:27]} 12. Rfd1 {[%emt 0:00:22]} Qc7 {[%emt 0:00:
00]} 13. Rac1 {[%emt 0:02:28]} Qb8 {[%emt 0:00:53]} 14. e4 {[%emt 0:02:42]}
Rfd8 {[%emt 0:07:21]} 15. Qe2 {[%emt 0:04:02]} Ne5 {[%emt 0:06:37]} 16. Nd4 {
[%emt 0:00:40]} Nc6 {[%emt 0:01:37]} 17. Nc2 {[%emt 0:00:20]} Bf8 {[%emt 0:00:
00]} 18. f4 {[%emt 0:05:30]} Qa8 {[%emt 0:10:41]} 19. Rd2 {[%emt 0:03:27]} Rd7
{[%emt 0:17:04]} 20. Rcd1 {[%emt 0:00:34]} Rcd8 {[%emt 0:00:24]} 21. g4 {
[%emt 0:00:28]} e5 {[%emt 0:07:19]} 22. g5 {[%emt 0:00:25]} Ne8 {[%emt 0:00:07]
} 23. f5 {[%emt 0:00:11]} Be7 {[%emt 0:02:43]} 24. Qg4 {[%emt 0:01:38]} f6 {
[%emt 0:00:48]} 25. h4 {[%emt 0:00:52]} Kh8 {[%emt 0:01:07]} 26. Bf3 {[%emt 0:
00:00]} Nc7 {[%emt 0:01:38]} 27. Rg2 {[%emt 0:01:28]} Rf8 {[%emt 0:02:07]} 28.
Bc1 {[%emt 0:00:40]} a6 {[%emt 0:01:11]} 29. g6 {[%emt 0:01:53]} b5 {[%emt 0:
00:00]} 30. Qh5 {[%emt 0:01:02]} 1-0

[Event "44th Chess Olympiad Open 2022"]
[Site "Chennai"]
[Date "2022.07.29"]
[Round "1.77"]
[White "Bouzidi, Ahmed"]
[Black "Swaminathan, Laia"]
[Result "1-0"]
[WhiteElo "2148"]
[BlackElo "1460"]
[Annotator "NA"]
[PlyCount "53"]
[EventDate "2022.??.??"]
[TimeControl "60"]

1. e4 {[%emt 0:00:04]} e5 {[%emt 0:00:10]} 2. Nf3 {[%emt 0:00:08]} Nc6 {
[%emt 0:00:13]} 3. Bb5 {[%emt 0:00:11]} a6 {[%emt 0:00:18]} 4. Bxc6 {[%emt 0:
00:00]} dxc6 {[%emt 0:00:11]} 5. O-O {[%emt 0:00:06]} Bd6 {[%emt 0:00:47]} 6.
d4 {[%emt 0:00:35]} Bg4 {[%emt 0:01:40]} 7. dxe5 {[%emt 0:00:18]} Bxf3 {
[%emt 0:01:18]} 8. Qxf3 {[%emt 0:00:07]} Bxe5 {[%emt 0:00:21]} 9. Nd2 {[%emt 0:
00:00]} Nf6 {[%emt 0:07:32]} 10. Nc4 {[%emt 0:10:20]} Bd4 {[%emt 0:00:51]} 11.
Rd1 {[%emt 0:01:05]} c5 {[%emt 0:07:16]} 12. c3 {[%emt 0:00:12]} Bxf2+ {
[%emt 0:01:03]} 13. Kxf2 {[%emt 0:00:09]} Qe7 {[%emt 0:03:08]} 14. e5 {[%emt 0:
00:00]} Nd7 {[%emt 0:00:29]} 15. Qf5 {[%emt 0:11:39]} O-O-O {[%emt 0:12:39]}
16. Bg5 {[%emt 0:00:51]} f6 {[%emt 0:01:51]} 17. exf6 {[%emt 0:01:33]} gxf6 {
[%emt 0:05:42]} 18. Bf4 {[%emt 0:03:42]} Qf7 {[%emt 0:08:28]} 19. Rd5 {[%emt 0:
00:00]} b6 {[%emt 0:03:09]} 20. Rad1 {[%emt 0:05:15]} Rhe8 {[%emt 0:04:18]} 21.
Bxc7 {[%emt 0:14:06]} Kxc7 {[%emt 0:06:40]} 22. Nd6 {[%emt 0:03:20]} Qe7 {
[%emt 0:02:04]} 23. Nxe8+ {[%emt 0:00:34]} Qxe8 {[%emt 0:00:21]} 24. Qf4+ {
[%emt 0:00:05]} Kc8 {[%emt 0:01:43]} 25. Qd6 {[%emt 0:00:10]} Qf7 {[%emt 0:00:
00]} 26. Qc6+ {[%emt 0:00:10]} Kb8 {[%emt 0:00:12]} 27. Rxd7 {[%emt 0:00:05]}
1-0

[Event "44th Chess Olympiad Open 2022"]
[Site "Chennai"]
[Date "2022.07.29"]
[Round "1.77"]
[White "Tracey, Shaun M"]
[Black "Amdouni, Zoubaier"]
[Result "0-1"]
[WhiteElo "1650"]
[BlackElo "2224"]
[Annotator "RC"]
[PlyCount "114"]
[EventDate "2022.??.??"]
[TimeControl "60"]

1. e4 {[%emt 0:00:03]} e5 {[%emt 0:00:44]} 2. Nf3 {[%emt 0:00:09]} Nc6 {
[%emt 0:00:04]} 3. Bc4 {[%emt 0:00:09]} Bc5 {[%emt 0:00:39]} 4. c3 {[%emt 0:00:
00]} d6 {[%emt 0:03:24]} 5. b4 {[%emt 0:06:38]} Bb6 {[%emt 0:00:33]} 6. Qb3 {
[%emt 0:01:10]} Qe7 {[%emt 0:01:01]} 7. a4 {[%emt 0:05:54]} a6 {[%emt 0:01:09]}
8. d3 {[%emt 0:12:49]} Nf6 {[%emt 0:04:37]} 9. Bg5 {[%emt 0:03:33]} h6 {
[%emt 0:02:38]} 10. Bc1 {[%emt 0:08:17]} a5 {[%emt 0:06:54]} 11. b5 {[%emt 0:
00:00]} Nb8 {[%emt 0:05:16]} 12. Nbd2 {[%emt 0:03:39]} Nbd7 {[%emt 0:03:15]}
13. Nf1 {[%emt 0:02:16]} Nc5 {[%emt 0:03:13]} 14. Qc2 {[%emt 0:02:18]} Be6 {
[%emt 0:02:40]} 15. Ne3 {[%emt 0:00:44]} c6 {[%emt 0:21:03]} 16. Bxe6 {[%emt 0:
00:00]} Qxe6 {[%emt 0:01:35]} 17. Nf5 {[%emt 0:03:40]} Kf8 {[%emt 0:02:55]} 18.
Rb1 {[%emt 0:00:56]} Ncd7 {[%emt 0:10:09]} 19. Ba3 {[%emt 0:09:07]} Bc5 {
[%emt 0:03:07]} 20. Bxc5 {[%emt 0:07:05]} Nxc5 {[%emt 0:00:14]} 21. c4 {
[%emt 0:05:12]} g6 {[%emt 0:01:08]} 22. Ne3 {[%emt 0:00:26]} Kg7 {[%emt 0:00:
00]} 23. O-O {[%emt 0:02:43]} Rhc8 {[%emt 0:02:00]} 24. bxc6 {[%emt 0:01:26]}
bxc6 {[%emt 0:00:33]} 25. Rb6 {[%emt 0:04:34]} Na6 {[%emt 0:03:49]} 26. Rb2 {
[%emt 0:01:07]} Nb4 {[%emt 0:00:40]} 27. Qd2 {[%emt 0:00:57]} Nd7 {[%emt 0:00:
00]} 28. Nc2 {[%emt 0:02:21]} c5 {[%emt 0:00:18]} 29. Na3 {[%emt 0:01:02]} Nb6
{[%emt 0:00:53]} 30. Qd1 {[%emt 0:00:11]} Rf8 {[%emt 0:05:00]} 31. Nb5 {
[%emt 0:00:20]} Rac8 {[%emt 0:00:17]} 32. Ne1 {[%emt 0:04:31]} f5 {[%emt 0:00:
00]} 33. f3 {[%emt 0:00:34]} Rf6 {[%emt 0:01:12]} 34. Rbf2 {[%emt 0:00:49]}
Rcf8 {[%emt 0:00:11]} 35. exf5 {[%emt 0:01:05]} gxf5 {[%emt 0:02:20]} 36. Re2 {
[%emt 0:00:13]} Qe7 {[%emt 0:02:48]} 37. Qb3 {[%emt 0:00:25]} Re6 {[%emt 0:00:
00]} 38. Nc2 {[%emt 0:00:37]} Kh7 {[%emt 0:00:08]} 39. Rfe1 {[%emt 0:00:18]}
Qh4 {[%emt 0:00:30]} 40. Ne3 {[%emt 0:00:37]} Rg6 {[%emt 0:00:25]} 41. Nf1 {
[%emt 0:01:51]} Rfg8 {[%emt 0:01:54]} 42. Rd1 {[%emt 0:03:04]} Nc8 {[%emt 0:00:
00]} 43. Qc3 {[%emt 0:04:51]} Ne7 {[%emt 0:03:40]} 44. Rdd2 {[%emt 0:05:19]} f4
{[%emt 0:04:45]} 45. Qb2 {[%emt 0:09:42]} Nf5 {[%emt 0:01:55]} 46. Nc3 {
[%emt 0:00:51]} Nd4 {[%emt 0:02:00]} 47. Rf2 {[%emt 0:00:48]} Qh5 {[%emt 0:00:
00]} 48. Kh1 {[%emt 0:03:59]} Nxf3 {[%emt 0:00:16]} 49. Rd1 {[%emt 0:00:24]}
Nh4 {[%emt 0:03:26]} 50. Rdd2 {[%emt 0:01:01]} Nxg2 {[%emt 0:02:21]} 51. Rxg2 {
[%emt 0:00:51]} Qf3 {[%emt 0:00:16]} 52. Kg1 {[%emt 0:01:09]} Nxd3 {[%emt 0:00:
00]} 53. Qc2 {[%emt 0:02:45]} Ne1 {[%emt 0:00:24]} 54. Rxg6 {[%emt 0:00:54]}
Rxg6+ {[%emt 0:00:26]} 55. Qxg6+ {[%emt 0:00:29]} Kxg6 {[%emt 0:00:02]} 56.
Rxd6+ {[%emt 0:00:11]} Kf7 {[%emt 0:00:09]} 57. Rd7+ {[%emt 0:00:29]} Ke8 {
[%emt 0:01:56]} 0-1

[Event "44th Chess Olympiad Open 2022"]
[Site "Chennai"]
[Date "2022.07.29"]
[Round "1.77"]
[White "Shaw, Clifford"]
[Black "Zaibi, Amir"]
[Result "0-1"]
[WhiteElo "1615"]
[BlackElo "2398"]
[Annotator "RC"]
[PlyCount "52"]
[EventDate "2022.??.??"]
[TimeControl "60"]

1. e4 {[%emt 0:00:02]} c5 {[%emt 0:00:03]} 2. d4 {[%emt 0:00:03]} cxd4 {
[%emt 0:00:08]} 3. c3 {[%emt 0:00:01]} dxc3 {[%emt 0:01:42]} 4. Nxc3 {[%emt 0:
00:00]} Nc6 {[%emt 0:00:08]} 5. Nf3 {[%emt 0:00:05]} e6 {[%emt 0:00:09]} 6. Bc4
{[%emt 0:00:02]} a6 {[%emt 0:00:14]} 7. O-O {[%emt 0:00:08]} Nge7 {[%emt 0:00:
00]} 8. Bg5 {[%emt 0:00:09]} b5 {[%emt 0:03:14]} 9. Bxb5 {[%emt 0:01:37]} f6 {
[%emt 0:05:25]} 10. Bxc6 {[%emt 0:00:31]} Nxc6 {[%emt 0:02:33]} 11. Bh4 {
[%emt 0:03:27]} Qa5 {[%emt 0:04:52]} 12. Rc1 {[%emt 0:03:55]} Rb8 {[%emt 0:00:
00]} 13. Qe2 {[%emt 0:06:37]} Bd6 {[%emt 0:01:11]} 14. Rfd1 {[%emt 0:01:49]}
Bf4 {[%emt 0:03:45]} 15. Rb1 {[%emt 0:08:28]} O-O {[%emt 0:00:58]} 16. Bg3 {
[%emt 0:01:22]} Be5 {[%emt 0:01:05]} 17. Nxe5 {[%emt 0:11:07]} fxe5 {[%emt 0:
00:00]} 18. Qh5 {[%emt 0:01:36]} Rb4 {[%emt 0:04:50]} 19. Bh4 {[%emt 0:04:54]}
Rd4 {[%emt 0:04:25]} 20. f3 {[%emt 0:08:12]} Rxd1+ {[%emt 0:00:47]} 21. Rxd1 {
[%emt 0:04:32]} Qb6+ {[%emt 0:01:07]} 22. Bf2 {[%emt 0:11:27]} Qxb2 {[%emt 0:
00:00]} 23. Bc5 {[%emt 0:00:23]} Rf7 {[%emt 0:05:02]} 24. Rd3 {[%emt 0:25:58]}
Qc1+ {[%emt 0:00:16]} 25. Kf2 {[%emt 0:00:02]} Qc2+ {[%emt 0:00:09]} 26. Ke3 {
[%emt 0:00:20]} Na5 {[%emt 0:00:17]} 0-1

[Event "44th Chess Olympiad Open 2022"]
[Site "Chennai"]
[Date "2022.07.29"]
[Round "1.78"]
[White "Kigigha, Bomo"]
[Black "Mutabazi Hugues"]
[Result "1-0"]
[WhiteElo "2251"]
[BlackElo "1666"]
[Annotator "RC"]
[PlyCount "120"]
[EventDate "2022.??.??"]
[TimeControl "60"]

1. c4 {[%emt 0:00:09]} e5 {[%emt 0:00:12]} 2. Nc3 {[%emt 0:00:10]} Nf6 {
[%emt 0:00:08]} 3. Nf3 {[%emt 0:00:25]} Nc6 {[%emt 0:00:09]} 4. a3 {[%emt 0:00:
00]} d5 {[%emt 0:01:45]} 5. cxd5 {[%emt 0:00:06]} Nxd5 {[%emt 0:00:06]} 6. Qc2
{[%emt 0:02:01]} Be7 {[%emt 0:06:08]} 7. e3 {[%emt 0:01:43]} Nxc3 {[%emt 0:00:
00]} 8. dxc3 {[%emt 0:06:05]} Bg4 {[%emt 0:06:45]} 9. Be2 {[%emt 0:02:14]} Qd5
{[%emt 0:03:08]} 10. e4 {[%emt 0:02:32]} Qe6 {[%emt 0:03:43]} 11. Be3 {[%emt 0:
00:00]} O-O {[%emt 0:06:08]} 12. h3 {[%emt 0:02:53]} Bxf3 {[%emt 0:01:36]} 13.
Bxf3 {[%emt 0:00:26]} Na5 {[%emt 0:01:35]} 14. O-O {[%emt 0:01:15]} Rfd8 {
[%emt 0:01:58]} 15. Rad1 {[%emt 0:12:24]} Qb3 {[%emt 0:03:41]} 16. Qxb3 {
[%emt 0:02:32]} Nxb3 {[%emt 0:02:20]} 17. Be2 {[%emt 0:05:58]} Nc5 {[%emt 0:00:
00]} 18. f3 {[%emt 0:01:18]} Nb3 {[%emt 0:00:10]} 19. Kh2 {[%emt 0:04:31]} Kf8
{[%emt 0:02:51]} 20. f4 {[%emt 0:07:54]} Rxd1 {[%emt 0:08:38]} 21. Bxd1 {
[%emt 0:06:12]} exf4 {[%emt 0:04:50]} 22. Bxf4 {[%emt 0:02:59]} Nc5 {[%emt 0:
00:00]} 23. Bc2 {[%emt 0:13:34]} Ne6 {[%emt 0:03:30]} 24. Bg3 {[%emt 0:00:25]}
Rd8 {[%emt 0:00:19]} 25. Bb3 {[%emt 0:00:29]} Ke8 {[%emt 0:01:54]} 26. Bxe6 {
[%emt 0:08:31]} fxe6 {[%emt 0:00:07]} 27. Bxc7 {[%emt 0:00:07]} Rd2 {[%emt 0:
00:00]} 28. Rb1 {[%emt 0:00:36]} Re2 {[%emt 0:01:02]} 29. e5 {[%emt 0:00:24]}
Kd7 {[%emt 0:00:43]} 30. Bb8 {[%emt 0:00:07]} a6 {[%emt 0:13:11]} 31. Kg3 {
[%emt 0:00:17]} Kc8 {[%emt 0:00:52]} 32. Kf3 {[%emt 0:00:11]} Rd2 {[%emt 0:00:
00]} 33. Ba7 {[%emt 0:00:16]} Kc7 {[%emt 0:05:25]} 34. Be3 {[%emt 0:00:16]} Rc2
{[%emt 0:00:17]} 35. a4 {[%emt 0:00:20]} b5 {[%emt 0:02:55]} 36. axb5 {[%emt 0:
00:00]} axb5 {[%emt 0:00:00]} 37. Bd4 {[%emt 0:01:11]} Kc6 {[%emt 0:00:00]} 38.
g3 {[%emt 0:03:06]} Bc5 {[%emt 0:00:00]} 39. Ke4 {[%emt 0:05:38]} Re2+ {
[%emt 0:00:49]} 40. Kf3 {[%emt 0:00:26]} Rh2 {[%emt 0:00:05]} 41. Ra1 {[%emt 0:
00:00]} Bxd4 {[%emt 0:36:38]} 42. cxd4 {[%emt 0:00:04]} Kd5 {[%emt 0:00:17]}
43. Ra6 {[%emt 0:01:09]} Rxb2 {[%emt 0:03:55]} 44. Rd6+ {[%emt 0:00:04]} Kc4 {
[%emt 0:00:10]} 45. d5 {[%emt 0:03:26]} exd5 {[%emt 0:01:20]} 46. e6 {[%emt 0:
00:00]} Rb3+ {[%emt 0:00:05]} 47. Kf4 {[%emt 0:11:27]} g5+ {[%emt 0:00:00]} 48.
Kf5 {[%emt 0:00:00]} Kc5 {[%emt 0:00:00]} 49. Rd8 {[%emt 0:00:00]} Re3 {
[%emt 0:00:00]} 50. Kf6 {[%emt 0:00:00]} Rf3+ {[%emt 0:00:00]} 51. Kxg5 {
[%emt 0:00:00]} Rxg3+ {[%emt 0:00:00]} 52. Kf4 {[%emt 0:00:00]} Rg7 {[%emt 0:
00:00]} 53. Ke5 {[%emt 0:00:00]} Rg5+ {[%emt 0:00:00]} 54. Kf6 {[%emt 0:00:00]}
Rg6+ {[%emt 0:00:00]} 55. Kf7 {[%emt 0:00:00]} Rg3 {[%emt 0:00:00]} 56. e7 {
[%emt 0:00:00]} Rf3+ {[%emt 0:00:00]} 57. Kg7 {[%emt 0:00:00]} Rg3+ {[%emt 0:
00:00]} 58. Kf6 {[%emt 0:00:00]} Re3 {[%emt 0:00:30]} 59. e8=Q {[%emt 0:00:00]}
Re5 {[%emt 0:00:06]} 60. Qe6 Rxe6+ {[%emt 0:00:00]} 1-0

[Event "44th Chess Olympiad Open 2022"]
[Site "Chennai"]
[Date "2022.07.29"]
[Round "1.78"]
[White "Okeke Issac"]
[Black "Muheto, Dieudonne"]
[Result "1-0"]
[WhiteElo "2204"]
[BlackElo "1830"]
[Annotator "RC"]
[PlyCount "77"]
[EventDate "2022.??.??"]
[TimeControl "60"]

1. e4 {[%emt 0:00:03]} c5 {[%emt 0:02:06]} 2. Nf3 {[%emt 0:00:08]} Nc6 {
[%emt 0:00:42]} 3. d4 {[%emt 0:00:19]} cxd4 {[%emt 0:00:23]} 4. Nxd4 {[%emt 0:
00:00]} Nf6 {[%emt 0:00:50]} 5. Nc3 {[%emt 0:00:10]} e5 {[%emt 0:02:14]} 6.
Ndb5 {[%emt 0:00:14]} d6 {[%emt 0:00:11]} 7. Bg5 {[%emt 0:01:17]} a6 {[%emt 0:
00:00]} 8. Na3 {[%emt 0:04:41]} b5 {[%emt 0:04:07]} 9. Nd5 {[%emt 0:00:05]} Be7
{[%emt 0:00:09]} 10. Bxf6 {[%emt 0:00:16]} Bxf6 {[%emt 0:00:15]} 11. c3 {
[%emt 0:03:26]} Bg5 {[%emt 0:02:26]} 12. Nc2 {[%emt 0:01:51]} O-O {[%emt 0:00:
00]} 13. Be2 {[%emt 0:01:45]} f5 {[%emt 0:00:33]} 14. exf5 {[%emt 0:00:26]}
Bxf5 {[%emt 0:01:33]} 15. O-O {[%emt 0:00:30]} Ne7 {[%emt 0:02:51]} 16. Ncb4 {
[%emt 0:06:44]} Ng6 {[%emt 0:04:42]} 17. a4 {[%emt 0:18:31]} Nf4 {[%emt 0:00:
00]} 18. axb5 {[%emt 0:03:05]} axb5 {[%emt 0:12:37]} 19. Rxa8 {[%emt 0:02:12]}
Qxa8 {[%emt 0:00:26]} 20. Nxf4 {[%emt 0:00:51]} Bxf4 {[%emt 0:01:28]} 21. Qxd6
{[%emt 0:02:27]} Be4 {[%emt 0:01:21]} 22. Qe6+ {[%emt 0:17:57]} Kh8 {[%emt 0:
00:00]} 23. Qh3 {[%emt 0:04:37]} Bf5 {[%emt 0:02:27]} 24. Bg4 {[%emt 0:00:40]}
Rf6 {[%emt 0:00:38]} 25. Bxf5 {[%emt 0:01:04]} Rh6 {[%emt 0:00:21]} 26. Be4 {
[%emt 0:03:53]} Qd8 {[%emt 0:06:24]} 27. Qxh6 {[%emt 0:02:40]} Bxh6 {[%emt 0:
00:00]} 28. Ra1 {[%emt 0:00:16]} Bc1 {[%emt 0:02:19]} 29. Ra8 {[%emt 0:00:06]}
Qxa8 {[%emt 0:00:21]} 30. Bd5 {[%emt 0:00:05]} Qb7 31. Bxb7 {[%emt 0:00:31]}
Bxb2 {[%emt 0:00:35]} 32. Ba8 {[%emt 0:00:21]} Kg8 {[%emt 0:01:04]} 33. Nd5 {
[%emt 0:00:07]} Kf7 {[%emt 0:00:16]} 34. Bc6 {[%emt 0:00:08]} Ke6 {[%emt 0:00:
00]} 35. Bxb5 {[%emt 0:00:37]} h6 {[%emt 0:00:20]} 36. c4 {[%emt 0:00:10]} Kd6
{[%emt 0:00:12]} 37. Kf1 {[%emt 0:00:07]} Bd4 {[%emt 0:00:10]} 38. Ke2 {
[%emt 0:00:16]} g6 {[%emt 0:01:10]} 39. Ne3 {[%emt 0:00:28]} 1-0

[Event "44th Chess Olympiad Open 2022"]
[Site "Chennai"]
[Date "2022.07.29"]
[Round "1.78"]
[White "Elvis Havyarimana"]
[Black "Adebayo, Adegboyega"]
[Result "0-1"]
[WhiteElo "1724"]
[BlackElo "2313"]
[Annotator "RC"]
[PlyCount "50"]
[EventDate "2022.??.??"]
[TimeControl "60"]

1. d4 {[%emt 0:00:03]} d5 {[%emt 0:00:18]} 2. e4 {[%emt 0:00:01]} dxe4 {
[%emt 0:00:26]} 3. Nc3 {[%emt 0:00:17]} Nf6 {[%emt 0:01:18]} 4. f3 {[%emt 0:00:
00]} exf3 {[%emt 0:05:44]} 5. Nxf3 {[%emt 0:00:13]} Bg4 {[%emt 0:00:46]} 6. h3
{[%emt 0:00:09]} Bxf3 {[%emt 0:00:53]} 7. Qxf3 {[%emt 0:00:14]} c6 {[%emt 0:00:
00]} 8. Be3 {[%emt 0:00:26]} e6 {[%emt 0:00:32]} 9. Bd3 {[%emt 0:00:17]} Bb4 {
[%emt 0:04:03]} 10. O-O {[%emt 0:00:15]} Nbd7 {[%emt 0:03:16]} 11. Ne4 {
[%emt 0:00:33]} O-O {[%emt 0:07:22]} 12. c3 {[%emt 0:01:00]} Be7 {[%emt 0:00:
00]} 13. Rf2 {[%emt 0:01:08]} Nd5 {[%emt 0:03:40]} 14. Bd2 {[%emt 0:01:11]} c5
{[%emt 0:04:47]} 15. c4 {[%emt 0:01:09]} N5f6 {[%emt 0:05:19]} 16. Raf1 {
[%emt 0:00:44]} cxd4 {[%emt 0:02:11]} 17. Kh1 {[%emt 0:02:59]} Ne5 {[%emt 0:00:
00]} 18. Qg3 {[%emt 0:02:47]} Ng6 {[%emt 0:04:34]} 19. Ng5 {[%emt 0:06:50]} Qd6
{[%emt 0:07:53]} 20. Bf4 {[%emt 0:02:40]} Nxf4 {[%emt 0:01:56]} 21. Rxf4 {
[%emt 0:00:10]} h6 {[%emt 0:02:03]} 22. Qh4 {[%emt 0:12:33]} hxg5 {[%emt 0:00:
00]} 23. Qxg5 {[%emt 0:00:13]} e5 {[%emt 0:00:17]} 24. Rh4 {[%emt 0:04:34]} e4
{[%emt 0:00:31]} 25. Rxf6 {[%emt 0:05:33]} Bxf6 {[%emt 0:00:49]} 0-1

[Event "44th Chess Olympiad Open 2022"]
[Site "Chennai"]
[Date "2022.07.29"]
[Round "1.79"]
[White "Steil-Antoni, Fiona"]
[Black "Asante Debesai Zerabruk"]
[Result "1/2-1/2"]
[WhiteElo "2218"]
[BlackElo "1785"]
[Annotator "RC"]
[PlyCount "85"]
[EventDate "2022.??.??"]
[TimeControl "60"]

1. e4 {[%emt 0:00:03]} c6 {[%emt 0:00:30]} 2. Ne2 {[%emt 0:01:03]} d6 {[%emt 0:
00:00]} 3. d4 {[%emt 0:01:20]} Nf6 {[%emt 0:00:38]} 4. Nbc3 {[%emt 0:01:21]}
Nbd7 {[%emt 0:01:18]} 5. g3 {[%emt 0:00:36]} e5 {[%emt 0:00:26]} 6. Bg2 {
[%emt 0:00:40]} Be7 {[%emt 0:00:11]} 7. O-O {[%emt 0:00:21]} O-O {[%emt 0:00:
00]} 8. h3 {[%emt 0:01:36]} Re8 {[%emt 0:09:38]} 9. Be3 {[%emt 0:00:50]} Bf8 {
[%emt 0:06:57]} 10. Qd2 {[%emt 0:04:39]} b5 {[%emt 0:03:08]} 11. a3 {[%emt 0:
00:00]} Qc7 {[%emt 0:00:13]} 12. f4 {[%emt 0:10:27]} Bb7 {[%emt 0:14:02]} 13.
dxe5 {[%emt 0:05:58]} dxe5 {[%emt 0:00:20]} 14. f5 {[%emt 0:01:18]} Bc5 {
[%emt 0:06:08]} 15. Bxc5 {[%emt 0:03:59]} Nxc5 {[%emt 0:01:10]} 16. Qe3 {
[%emt 0:00:45]} Qb6 {[%emt 0:02:54]} 17. Kh2 {[%emt 0:05:35]} Na4 {[%emt 0:00:
00]} 18. Qxb6 {[%emt 0:02:56]} Nxb6 {[%emt 0:11:04]} 19. b3 {[%emt 0:01:59]}
Rad8 {[%emt 0:02:42]} 20. Rad1 {[%emt 0:00:47]} a5 {[%emt 0:02:18]} 21. g4 {
[%emt 0:04:32]} h6 {[%emt 0:01:38]} 22. Rxd8 {[%emt 0:03:47]} Rxd8 {[%emt 0:00:
00]} 23. Rd1 {[%emt 0:00:23]} Rxd1 {[%emt 0:00:27]} 24. Nxd1 {[%emt 0:00:08]}
b4 {[%emt 0:03:59]} 25. axb4 {[%emt 0:05:12]} axb4 {[%emt 0:00:06]} 26. Nc1 {
[%emt 0:00:49]} c5 {[%emt 0:03:19]} 27. Nf2 {[%emt 0:01:35]} c4 {[%emt 0:01:03]
} 28. h4 {[%emt 0:01:15]} Nfd7 {[%emt 0:03:52]} 29. bxc4 {[%emt 0:03:03]} Nxc4
{[%emt 0:01:12]} 30. Ncd3 {[%emt 0:00:57]} Ne3 {[%emt 0:01:07]} 31. Nxb4 {
[%emt 0:00:54]} Nc5 {[%emt 0:00:19]} 32. Nbd3 {[%emt 0:07:48]} Nxd3 {[%emt 0:
00:00]} 33. cxd3 {[%emt 0:00:14]} Ba6 {[%emt 0:01:36]} 34. Kg3 {[%emt 0:01:41]}
Nxg2 {[%emt 0:01:04]} 35. Kxg2 {[%emt 0:00:08]} f6 {[%emt 0:01:00]} 36. Kf3 {
[%emt 0:01:06]} Kf7 {[%emt 0:00:31]} 37. Ke3 {[%emt 0:01:02]} g6 {[%emt 0:00:
00]} 38. Nd1 {[%emt 0:01:04]} h5 {[%emt 0:00:44]} 39. g5 {[%emt 0:04:50]} gxf5
{[%emt 0:01:01]} 40. exf5 {[%emt 0:00:13]} Bc8 {[%emt 0:00:27]} 41. Ke4 {
[%emt 0:35:45]} Bb7+ {[%emt 0:30:49]} 42. Ke3 {[%emt 0:00:02]} Bc8 {[%emt 0:00:
00]} 43. Ke4 {[%emt 0:00:11]} 1/2-1/2

[Event "44th Chess Olympiad Open 2022"]
[Site "Chennai"]
[Date "2022.07.29"]
[Round "1.79"]
[White "Kibrom Weldegebriel Beraki"]
[Black "Berend, Elvira"]
[Result "0-1"]
[WhiteElo "1793"]
[BlackElo "2333"]
[Annotator "ChessBase"]
[PlyCount "94"]
[EventDate "2022.??.??"]
[TimeControl "60"]

1. d4 {[%emt 0:00:06]} Nf6 {[%emt 0:00:10]} 2. c4 {[%emt 0:00:15]} g6 {[%emt 0:
00:00]} 3. Nc3 {[%emt 0:00:13]} Bg7 {[%emt 0:00:14]} 4. e4 {[%emt 0:00:09]} d6
{[%emt 0:00:08]} 5. Be2 {[%emt 0:00:13]} O-O {[%emt 0:00:15]} 6. Nf3 {[%emt 0:
00:00]} e5 {[%emt 0:01:05]} 7. d5 {[%emt 0:00:49]} a5 {[%emt 0:00:18]} 8. Bg5 {
[%emt 0:00:16]} h6 {[%emt 0:00:17]} 9. Be3 {[%emt 0:01:03]} Ng4 {[%emt 0:00:42]
} 10. Bd2 {[%emt 0:00:28]} f5 {[%emt 0:02:34]} 11. exf5 {[%emt 0:02:05]} gxf5 {
[%emt 0:00:21]} 12. h3 {[%emt 0:00:54]} Nf6 {[%emt 0:02:33]} 13. Qc1 {[%emt 0:
00:00]} f4 {[%emt 0:05:41]} 14. g3 {[%emt 0:07:15]} e4 {[%emt 0:12:04]} 15. Nh4
{[%emt 0:08:57]} e3 {[%emt 0:07:19]} 16. fxe3 {[%emt 0:00:20]} fxg3 {[%emt 0:
00:00]} 17. Ng6 {[%emt 0:04:16]} Nh7 {[%emt 0:12:04]} 18. Nxf8 {[%emt 0:07:53]}
Nxf8 {[%emt 0:03:58]} 19. Bf1 {[%emt 0:07:56]} Ng6 {[%emt 0:03:30]} 20. Qd1 {
[%emt 0:09:34]} Qh4 {[%emt 0:08:49]} 21. Bg2 {[%emt 0:01:15]} Ne5 {[%emt 0:00:
00]} 22. Qe2 {[%emt 0:01:20]} Bf5 {[%emt 0:01:15]} 23. e4 {[%emt 0:01:14]} Bg6
{[%emt 0:00:10]} 24. O-O {[%emt 0:07:23]} Bh5 {[%emt 0:03:50]} 25. Qe3 {
[%emt 0:02:28]} Nxc4 {[%emt 0:01:15]} 26. Qf4 {[%emt 0:00:50]} Qxf4 {[%emt 0:
00:00]} 27. Bxf4 {[%emt 0:00:38]} Nxb2 {[%emt 0:00:23]} 28. Nb5 {[%emt 0:03:55]
} Na6 {[%emt 0:00:23]} 29. a4 {[%emt 0:04:05]} Be2 {[%emt 0:04:32]} 30. Rfe1 {
[%emt 0:06:28]} Nd3 {[%emt 0:05:00]} 31. Bxg3 {[%emt 0:00:39]} Nxe1 {[%emt 0:
00:00]} 32. Rxe1 {[%emt 0:00:14]} Bxb5 {[%emt 0:00:46]} 33. axb5 {[%emt 0:00:
00]} Nb4 {[%emt 0:02:09]} 34. b6 {[%emt 0:02:12]} Bd4+ {[%emt 0:00:16]} 35. Kh2
{[%emt 0:02:22]} Bxb6 {[%emt 0:00:12]} 36. e5 {[%emt 0:00:12]} Nd3 {[%emt 0:00:
00]} 37. Re2 {[%emt 0:00:44]} Nxe5 {[%emt 0:00:36]} 38. Bxe5 {[%emt 0:01:06]}
dxe5 {[%emt 0:00:03]} 39. Rxe5 {[%emt 0:00:41]} Bc5 {[%emt 0:00:24]} 40. Re6 {
[%emt 0:00:29]} Bd6+ {[%emt 0:00:12]} 41. Kg1 {[%emt 0:30:18]} a4 {[%emt 0:00:
00]} 42. Re2 {[%emt 0:00:45]} b5 {[%emt 0:00:36]} 43. Be4 {[%emt 0:00:39]} b4 {
[%emt 0:00:42]} 44. Bd3 {[%emt 0:04:40]} b3 {[%emt 0:00:38]} 45. Rg2+ {[%emt 0:
00:00]} Kh8 {[%emt 0:00:52]} 46. Bc4 {[%emt 0:00:41]} Rb8 {[%emt 0:00:17]} 47.
Rb2 {[%emt 0:00:35]} Rb4 {[%emt 0:00:11]} 0-1